[Event "Early-Titled-Tuesday-Blitz-September-26-2023"]
[Site "Chess.com"]
[Date "2023.09.26"]
[Round "4"]
[White "djokovic74"]
[Black "whiteglovethief"]
[Result "1-0"]
[WhiteElo "2696"]
[BlackElo "2504"]
[TimeControl "180+1"]
[EndTime "8:40:48 PDT"]
[Termination "djokovic74 won by resignation"]

1. e4 {[%clk 0:03:00.9]} 1... e6 {[%clk 0:03:00.3]} 2. d4 {[%clk 0:03:00.9]}
2... d5 {[%clk 0:03:00.8]} 3. Nd2 {[%clk 0:03:01.6]} 3... c5 {[%clk 0:03:01.3]}
4. exd5 {[%clk 0:03:01.8]} 4... exd5 {[%clk 0:03:02.2]} 5. Ngf3 {[%clk
0:03:01.9]} 5... Nc6 {[%clk 0:03:03.1]} 6. Bb5 {[%clk 0:03:01.5]} 6... Bd6
{[%clk 0:03:03.6]} 7. O-O {[%clk 0:03:01.3]} 7... Ne7 {[%clk 0:03:03]} 8. dxc5
{[%clk 0:03:01.8]} 8... Bxc5 {[%clk 0:03:03.9]} 9. Nb3 {[%clk 0:03:02.5]} 9...
Bd6 {[%clk 0:03:04.5]} 10. Nbd4 {[%clk 0:03:03]} 10... O-O {[%clk 0:03:04.9]}
11. Re1 {[%clk 0:03:01.2]} 11... Bg4 {[%clk 0:03:03.7]} 12. Be3 {[%clk
0:02:56.2]} 12... Qc7 {[%clk 0:02:58]} 13. h3 {[%clk 0:02:52.3]} 13... Bh5
{[%clk 0:02:53.2]} 14. c3 {[%clk 0:02:52.4]} 14... Rad8 {[%clk 0:02:50.3]} 15.
Be2 {[%clk 0:02:52.2]} 15... a6 {[%clk 0:02:46]} 16. Qd2 {[%clk 0:02:45.5]}
16... Bg6 {[%clk 0:02:43.2]} 17. Rad1 {[%clk 0:02:45.4]} 17... Rfe8 {[%clk
0:02:42.4]} 18. Bd3 {[%clk 0:02:39.2]} 18... Be4 {[%clk 0:02:41.8]} 19. Bb1
{[%clk 0:02:33.9]} 19... Nxd4 {[%clk 0:02:39.5]} 20. Nxd4 {[%clk 0:02:32.3]}
20... Nc6 {[%clk 0:02:39.9]} 21. Nf5 {[%clk 0:02:20.4]} 21... Be5 {[%clk
0:02:37.3]} 22. Nd4 {[%clk 0:02:03.4]} 22... f5 {[%clk 0:02:31.7]} 23. f3 {[%clk
0:01:57.3]} 23... Bxb1 {[%clk 0:02:29.6]} 24. Rxb1 {[%clk 0:01:57.4]} 24... f4
{[%clk 0:02:27.8]} 25. Bf2 {[%clk 0:01:53.6]} 25... Bxd4 {[%clk 0:02:15.9]} 26.
Bxd4 {[%clk 0:01:52]} 26... Nxd4 {[%clk 0:02:11.6]} 27. Qxd4 {[%clk 0:01:52]}
27... Qc4 {[%clk 0:02:12]} 28. Rxe8+ {[%clk 0:01:31.5]} 28... Rxe8 {[%clk
0:02:12.9]} 29. Rd1 {[%clk 0:01:31.9]} 29... Qxa2 {[%clk 0:02:01.9]} 30. Qxd5+
{[%clk 0:01:31.5]} 30... Qxd5 {[%clk 0:02:01.1]} 31. Rxd5 {[%clk 0:01:32.3]}
31... Re2 {[%clk 0:02:00.8]} 32. Rd8+ {[%clk 0:01:32.3]} 32... Kf7 {[%clk
0:02:00.2]} 33. Rd7+ {[%clk 0:01:32.3]} 33... Re7 {[%clk 0:02:00]} 34. Rd4
{[%clk 0:01:32.3]} 34... g5 {[%clk 0:02:00.2]} 35. Kf2 {[%clk 0:01:32.7]} 35...
h6 {[%clk 0:01:58.9]} 36. Rd6 {[%clk 0:01:32.4]} 36... Re6 {[%clk 0:01:57.9]}
37. Rd7+ {[%clk 0:01:32.6]} 37... Re7 {[%clk 0:01:58.1]} 38. Rd5 {[%clk
0:01:32.7]} 38... Ke6 {[%clk 0:01:57.5]} 39. Rd4 {[%clk 0:01:30.5]} 39... Rd7
{[%clk 0:01:56.5]} 40. Re4+ {[%clk 0:01:30.9]} 40... Kf6 {[%clk 0:01:48.7]} 41.
Ke2 {[%clk 0:01:31.3]} 41... Re7 {[%clk 0:01:47.7]} 42. Kd3 {[%clk 0:01:30.8]}
42... Re5 {[%clk 0:01:41.4]} 43. Kd4 {[%clk 0:01:26.8]} 43... Rxe4+ {[%clk
0:01:36.4]} 44. Kxe4 {[%clk 0:01:27.2]} 44... Ke6 {[%clk 0:01:36.8]} 45. h4
{[%clk 0:01:11.7]} 45... a5 {[%clk 0:01:31.3]} 46. hxg5 {[%clk 0:00:37.4]} 46...
hxg5 {[%clk 0:01:32.2]} 47. c4 {[%clk 0:00:38]} 47... a4 {[%clk 0:01:31.1]} 48.
c5 {[%clk 0:00:38]} 48... Kd7 {[%clk 0:01:25.4]} 49. Kf5 {[%clk 0:00:11.9]}
49... Kc6 {[%clk 0:01:25.5]} 50. Kxg5 {[%clk 0:00:12.6]} 50... Kxc5 {[%clk
0:01:25.4]} 51. Kxf4 {[%clk 0:00:13.3]} 51... b5 {[%clk 0:01:05.8]} 52. g4
{[%clk 0:00:05.4]} 52... b4 {[%clk 0:01:03.9]} 53. g5 {[%clk 0:00:05.9]} 53...
Kd6 {[%clk 0:00:55.2]} 54. g6 {[%clk 0:00:05.9]} 54... Ke6 {[%clk 0:00:51.6]}
55. Kg5 {[%clk 0:00:05.8]} 55... a3 {[%clk 0:00:49.7]} 56. bxa3 {[%clk
0:00:03.6]} 56... bxa3 {[%clk 0:00:49.8]} 57. Kh6 {[%clk 0:00:03]} 57... a2
{[%clk 0:00:29.8]} 58. g7 {[%clk 0:00:03.5]} 58... a1=Q {[%clk 0:00:28]} 59.
g8=Q+ {[%clk 0:00:03.8]} 59... Kf5 {[%clk 0:00:22.4]} 60. Qg4+ {[%clk
0:00:01.5]} 60... Kf6 {[%clk 0:00:20.2]} 61. Qg7+ {[%clk 0:00:02.1]} 1-0

[Event "Early-Titled-Tuesday-Blitz-September-26-2023"]
[Site "Chess.com"]
[Date "2023.09.26"]
[Round "4"]
[White "MFatigue"]
[Black "Javylavilla"]
[Result "0-1"]
[WhiteElo "2495"]
[BlackElo "2327"]
[TimeControl "180+1"]
[EndTime "8:40:57 PDT"]
[Termination "Javylavilla won by resignation"]

1. e4 {[%clk 0:03:00.9]} 1... e6 {[%clk 0:02:59.8]} 2. d4 {[%clk 0:03:00.9]}
2... d5 {[%clk 0:02:59.9]} 3. Nc3 {[%clk 0:03:01.8]} 3... Bb4 {[%clk 0:02:57.7]}
4. e5 {[%clk 0:03:02.1]} 4... c5 {[%clk 0:02:55.3]} 5. a3 {[%clk 0:03:02.6]}
5... Bxc3+ {[%clk 0:02:53.3]} 6. bxc3 {[%clk 0:03:03.5]} 6... Qa5 {[%clk
0:02:50.8]} 7. Bd2 {[%clk 0:03:03.1]} 7... Qc7 {[%clk 0:02:50.2]} 8. Qg4 {[%clk
0:02:56.4]} 8... Ne7 {[%clk 0:02:49.6]} 9. Qxg7 {[%clk 0:02:49.8]} 9... Rg8
{[%clk 0:02:49.3]} 10. Qxh7 {[%clk 0:02:50.3]} 10... Nbc6 {[%clk 0:02:48.8]} 11.
Ne2 {[%clk 0:02:43.1]} 11... Bd7 {[%clk 0:02:47.6]} 12. f4 {[%clk 0:02:42.1]}
12... cxd4 {[%clk 0:02:40.6]} 13. cxd4 {[%clk 0:02:39.7]} 13... O-O-O {[%clk
0:02:38.6]} 14. Qd3 {[%clk 0:02:28.2]} 14... Kb8 {[%clk 0:02:28.1]} 15. g3
{[%clk 0:02:09.3]} 15... Na5 {[%clk 0:02:25.6]} 16. Bxa5 {[%clk 0:02:08.9]}
16... Qxa5+ {[%clk 0:02:25]} 17. Qd2 {[%clk 0:02:09.6]} 17... Qc7 {[%clk
0:02:21.4]} 18. c3 {[%clk 0:01:46.4]} 18... Bb5 {[%clk 0:02:18.5]} 19. a4 {[%clk
0:01:41.1]} 19... Bc4 {[%clk 0:02:17.8]} 20. Rg1 {[%clk 0:01:29.4]} 20... Nc6
{[%clk 0:02:16]} 21. g4 {[%clk 0:01:28.5]} 21... Na5 {[%clk 0:02:16]} 22. Nc1
{[%clk 0:01:20.8]} 22... Bxf1 {[%clk 0:02:11.2]} 23. Kxf1 {[%clk 0:01:21.7]}
23... Qc4+ {[%clk 0:02:10]} 24. Ne2 {[%clk 0:01:20.3]} 24... Nb3 {[%clk
0:02:09.3]} 25. Qa2 {[%clk 0:01:20]} 25... Nxa1 {[%clk 0:02:06.8]} 26. Qxa1
{[%clk 0:01:20.9]} 26... Qd3 {[%clk 0:02:03.4]} 27. Rg3 {[%clk 0:01:16]} 27...
Qe4 {[%clk 0:02:02.2]} 28. Kf2 {[%clk 0:01:13.4]} 28... Rdf8 {[%clk 0:01:43.2]}
29. Qc1 {[%clk 0:01:08.4]} 29... f6 {[%clk 0:01:42.3]} 30. h4 {[%clk 0:01:03.8]}
30... fxe5 {[%clk 0:01:41.7]} 31. dxe5 {[%clk 0:01:02.7]} 31... Qxe5 {[%clk
0:01:41.6]} 32. Qe3 {[%clk 0:00:58.7]} 32... Qd6 {[%clk 0:01:19.6]} 33. Kg2
{[%clk 0:00:58.6]} 33... Qc6 {[%clk 0:01:08.9]} 34. Qf3 {[%clk 0:00:58.3]} 34...
Qxa4 {[%clk 0:01:08]} 35. h5 {[%clk 0:00:53.6]} 35... e5 {[%clk 0:01:04.1]} 36.
f5 {[%clk 0:00:51.7]} 36... e4 {[%clk 0:01:03.4]} 37. Qf4+ {[%clk 0:00:49.3]}
37... Kc8 {[%clk 0:01:02.7]} 38. h6 {[%clk 0:00:48.1]} 38... Qa6 {[%clk
0:00:59.4]} 39. Nd4 {[%clk 0:00:39.6]} 39... Qa2+ {[%clk 0:00:45]} 40. Kh3
{[%clk 0:00:40]} 40... Rh8 {[%clk 0:00:41]} 41. g5 {[%clk 0:00:39.9]} 41... Qb1
{[%clk 0:00:37.8]} 42. Kh4 {[%clk 0:00:25.9]} 42... Qh1+ {[%clk 0:00:34.9]} 43.
Rh3 {[%clk 0:00:26.4]} 43... Qe1+ {[%clk 0:00:35.3]} 44. Kh5 {[%clk 0:00:25.2]}
44... Qd1+ {[%clk 0:00:31]} 45. Qg4 {[%clk 0:00:25]} 45... Qd2 {[%clk
0:00:25.1]} 46. Ne6 {[%clk 0:00:22.9]} 46... Rf6 {[%clk 0:00:20.3]} 47. Qf4
{[%clk 0:00:18.6]} 47... Qe2+ {[%clk 0:00:19.2]} 48. Kh4 {[%clk 0:00:18.7]}
48... Qe1+ {[%clk 0:00:14.6]} 49. Rg3 {[%clk 0:00:19.1]} 49... Qh1+ {[%clk
0:00:14.1]} 50. Kg4 {[%clk 0:00:19.1]} 50... Rf7 {[%clk 0:00:11.4]} 51. Qd6
{[%clk 0:00:13.1]} 51... Qd1+ {[%clk 0:00:10.6]} 52. Kf4 {[%clk 0:00:13.7]}
52... Qf1+ {[%clk 0:00:10.1]} 53. Ke5 {[%clk 0:00:11.5]} 53... Qxf5+ {[%clk
0:00:09.9]} 54. Kd4 {[%clk 0:00:12.3]} 54... Qf2+ {[%clk 0:00:08.5]} 55. Kxd5
{[%clk 0:00:09.4]} 55... Rd7 {[%clk 0:00:08.1]} 56. Qxd7+ {[%clk 0:00:06.8]}
56... Kxd7 {[%clk 0:00:09]} 57. Rg4 {[%clk 0:00:06.5]} 57... Qd2+ {[%clk
0:00:08.3]} 58. Ke5 {[%clk 0:00:06.6]} 58... Qd6+ {[%clk 0:00:07.1]} 59. Kxe4
{[%clk 0:00:05.6]} 59... Qxe6+ {[%clk 0:00:08]} 60. Kf4 {[%clk 0:00:06.1]} 60...
Rf8+ {[%clk 0:00:07.8]} 61. Kg3 {[%clk 0:00:06.4]} 61... Qe3+ {[%clk 0:00:08.5]}
62. Kh4 {[%clk 0:00:07.3]} 62... Qf2+ {[%clk 0:00:08.6]} 63. Kh5 {[%clk
0:00:07.9]} 63... Qh2+ {[%clk 0:00:08.5]} 64. Rh4 {[%clk 0:00:06.8]} 64... Qe2+
{[%clk 0:00:08.6]} 65. Kg6 {[%clk 0:00:06.1]} 65... Qe6+ {[%clk 0:00:08]} 66.
Kh5 {[%clk 0:00:06.1]} 66... Rg8 {[%clk 0:00:07.8]} 67. h7 {[%clk 0:00:05.9]}
67... Qg6+ {[%clk 0:00:08.1]} 68. Kg4 {[%clk 0:00:05.9]} 68... Qxg5+ {[%clk
0:00:08.5]} 69. Kf3 {[%clk 0:00:06.1]} 69... Rf8+ {[%clk 0:00:08.7]} 0-1

[Event "Early-Titled-Tuesday-Blitz-September-26-2023"]
[Site "Chess.com"]
[Date "2023.09.26"]
[Round "4"]
[White "Rital44"]
[Black "MMAHDI2013"]
[Result "0-1"]
[WhiteElo "2540"]
[BlackElo "2296"]
[TimeControl "180+1"]
[EndTime "8:40:59 PDT"]
[Termination "MMAHDI2013 won on time"]

1. d4 {[%clk 0:03:00.9]} 1... Nf6 {[%clk 0:02:59.6]} 2. c4 {[%clk 0:03:01.2]}
2... e6 {[%clk 0:02:59.6]} 3. g4 {[%clk 0:03:01.5]} 3... Nxg4 {[%clk 0:02:47.7]}
4. e4 {[%clk 0:03:00.9]} 4... f5 {[%clk 0:02:38.8]} 5. Nc3 {[%clk 0:02:58]} 5...
Qh4 {[%clk 0:02:31.8]} 6. Qe2 {[%clk 0:02:57]} 6... Bb4 {[%clk 0:02:26]} 7. Nf3
{[%clk 0:02:55.8]} 7... Qh5 {[%clk 0:02:20.9]} 8. e5 {[%clk 0:02:54.5]} 8... O-O
{[%clk 0:02:13.1]} 9. a3 {[%clk 0:02:39.9]} 9... Bxc3+ {[%clk 0:01:59.5]} 10.
bxc3 {[%clk 0:02:40.8]} 10... b6 {[%clk 0:01:59]} 11. h3 {[%clk 0:02:31.2]}
11... Bb7 {[%clk 0:01:53.1]} 12. Rg1 {[%clk 0:02:26.1]} 12... Nh6 {[%clk
0:01:44]} 13. Bg2 {[%clk 0:02:25.2]} 13... Kh8 {[%clk 0:01:39.4]} 14. Bd2 {[%clk
0:02:12.1]} 14... Nc6 {[%clk 0:01:23.1]} 15. O-O-O {[%clk 0:02:11.2]} 15... Na5
{[%clk 0:01:20.2]} 16. Kb1 {[%clk 0:01:46.1]} 16... Ba6 {[%clk 0:01:12.2]} 17.
Bh1 {[%clk 0:01:35]} 17... Bxc4 {[%clk 0:01:09.2]} 18. Qe1 {[%clk 0:01:33.5]}
18... Bd5 {[%clk 0:01:02.7]} 19. Rg5 {[%clk 0:01:21.1]} 19... Qe8 {[%clk
0:00:44.2]} 20. Qg1 {[%clk 0:01:17.9]} 20... Rg8 {[%clk 0:00:44]} 21. Qh2 {[%clk
0:01:05.3]} 21... Nc4 {[%clk 0:00:43.5]} 22. Bc1 {[%clk 0:01:05.4]} 22... d6
{[%clk 0:00:43.5]} 23. Nd2 {[%clk 0:00:41.6]} 23... Qb5+ {[%clk 0:00:40.6]} 24.
Ka1 {[%clk 0:00:37.7]} 24... Nxd2 {[%clk 0:00:30.6]} 25. Rxd2 {[%clk 0:00:36.7]}
25... Qc4 {[%clk 0:00:21.8]} 26. Bxd5 {[%clk 0:00:36]} 26... Qxc3+ {[%clk
0:00:20.9]} 27. Bb2 {[%clk 0:00:19.8]} 27... Qxd2 {[%clk 0:00:20.7]} 28. Bxa8
{[%clk 0:00:20.5]} 28... Qxg5 {[%clk 0:00:20.4]} 29. Bc6 {[%clk 0:00:18.5]}
29... d5 {[%clk 0:00:20.4]} 30. f4 {[%clk 0:00:17.5]} 30... Qg6 {[%clk 0:00:20]}
31. Qc2 {[%clk 0:00:17.1]} 31... Qh5 {[%clk 0:00:19.7]} 32. Bd7 {[%clk
0:00:16.9]} 32... Qf7 {[%clk 0:00:19.5]} 33. Qxc7 {[%clk 0:00:16.1]} 33... Qe7
{[%clk 0:00:19.3]} 34. Qd6 {[%clk 0:00:05.8]} 34... Qxd6 {[%clk 0:00:18.6]} 35.
exd6 {[%clk 0:00:06.7]} 35... Rd8 {[%clk 0:00:19.2]} 36. Bxe6 {[%clk 0:00:07.3]}
36... Rxd6 {[%clk 0:00:20.1]} 37. Bc8 {[%clk 0:00:07.4]} 37... Rc6 {[%clk
0:00:20]} 38. Bb7 {[%clk 0:00:07.4]} 38... Rc7 {[%clk 0:00:20.3]} 39. Bxd5
{[%clk 0:00:07.6]} 39... Nf7 {[%clk 0:00:20.2]} 40. Be6 {[%clk 0:00:06.7]} 40...
Nd6 {[%clk 0:00:20.7]} 41. d5 {[%clk 0:00:07.4]} 41... h6 {[%clk 0:00:19.6]} 42.
Be5 {[%clk 0:00:07.7]} 42... Ne8 {[%clk 0:00:17]} 43. d6 {[%clk 0:00:06.6]}
43... Rc1+ {[%clk 0:00:16]} 44. Kb2 {[%clk 0:00:06.8]} 44... Rd1 {[%clk
0:00:15.9]} 45. d7 {[%clk 0:00:07.1]} 45... Nf6 {[%clk 0:00:15.1]} 46. Bc7
{[%clk 0:00:06]} 46... Nxd7 {[%clk 0:00:14.3]} 47. Kc2 {[%clk 0:00:05.3]} 47...
Rd4 {[%clk 0:00:14.5]} 48. Kc3 {[%clk 0:00:05.9]} 48... Rd1 {[%clk 0:00:14.3]}
49. Kc2 {[%clk 0:00:06.5]} 49... Nc5 {[%clk 0:00:14.8]} 50. Bxf5 {[%clk
0:00:04.8]} 50... Rf1 {[%clk 0:00:14.4]} 51. Bg4 {[%clk 0:00:03.9]} 51... Rf2+
{[%clk 0:00:14.8]} 52. Kc3 {[%clk 0:00:04.4]} 52... g6 {[%clk 0:00:15.2]} 53.
Kb4 {[%clk 0:00:03.9]} 53... h5 {[%clk 0:00:15.3]} 54. Be5+ {[%clk 0:00:03.6]}
54... Kg8 {[%clk 0:00:15.6]} 55. Bc8 {[%clk 0:00:04.5]} 55... Rf3 {[%clk
0:00:13.8]} 56. Kb5 {[%clk 0:00:01.9]} 56... Rxa3 {[%clk 0:00:13.4]} 57. Kc6
{[%clk 0:00:02.8]} 57... Kf8 {[%clk 0:00:13.8]} 58. Bd6+ {[%clk 0:00:02.4]}
58... Kf7 {[%clk 0:00:13.6]} 59. f5 {[%clk 0:00:02.5]} 59... Rc3 {[%clk
0:00:13.2]} 60. Kd5 {[%clk 0:00:01.1]} 60... Na4 {[%clk 0:00:12.5]} 0-1

[Event "Early-Titled-Tuesday-Blitz-September-26-2023"]
[Site "Chess.com"]
[Date "2023.09.26"]
[Round "4"]
[White "crazyluzhinTh3"]
[Black "ljm509"]
[Result "1-0"]
[WhiteElo "2516"]
[BlackElo "2313"]
[TimeControl "180+1"]
[EndTime "8:41:01 PDT"]
[Termination "crazyluzhinTh3 won on time"]

1. e4 {[%clk 0:03:00.9]} 1... e6 {[%clk 0:02:58.6]} 2. d4 {[%clk 0:03:00.6]}
2... d5 {[%clk 0:02:58.5]} 3. Nc3 {[%clk 0:03:01.1]} 3... dxe4 {[%clk
0:02:58.4]} 4. Nxe4 {[%clk 0:02:59.9]} 4... Nd7 {[%clk 0:02:59.3]} 5. Bd3 {[%clk
0:03:00.5]} 5... Ngf6 {[%clk 0:02:58.9]} 6. Nf3 {[%clk 0:03:01.2]} 6... Nxe4
{[%clk 0:02:58.9]} 7. Bxe4 {[%clk 0:03:02.1]} 7... Nf6 {[%clk 0:02:59.6]} 8. Bd3
{[%clk 0:03:02.8]} 8... Be7 {[%clk 0:02:57]} 9. Qe2 {[%clk 0:03:02.8]} 9... a6
{[%clk 0:02:55.6]} 10. Bg5 {[%clk 0:03:03.1]} 10... h6 {[%clk 0:02:55]} 11. Bd2
{[%clk 0:03:03.1]} 11... c5 {[%clk 0:02:54.4]} 12. dxc5 {[%clk 0:03:03]} 12...
Bxc5 {[%clk 0:02:54.3]} 13. O-O-O {[%clk 0:03:03.7]} 13... Qc7 {[%clk
0:02:54.7]} 14. Kb1 {[%clk 0:03:03.3]} 14... Bd7 {[%clk 0:02:53.9]} 15. Bc3
{[%clk 0:03:02.9]} 15... O-O-O {[%clk 0:02:51.4]} 16. Ne5 {[%clk 0:03:00.7]}
16... Be8 {[%clk 0:02:47.1]} 17. Nc4 {[%clk 0:02:56.9]} 17... Bb5 {[%clk
0:02:23.1]} 18. Be5 {[%clk 0:02:55.3]} 18... Qc6 {[%clk 0:02:21]} 19. f4 {[%clk
0:02:50.6]} 19... Rhg8 {[%clk 0:02:12.2]} 20. Rhe1 {[%clk 0:02:46.7]} 20... Nd7
{[%clk 0:02:12]} 21. Bc3 {[%clk 0:02:44.1]} 21... Bxc4 {[%clk 0:02:04.4]} 22.
Bxc4 {[%clk 0:02:42.8]} 22... Kb8 {[%clk 0:02:04.8]} 23. g4 {[%clk 0:02:32.1]}
23... Nb6 {[%clk 0:02:00.6]} 24. Bb3 {[%clk 0:02:26]} 24... g5 {[%clk
0:01:52.9]} 25. fxg5 {[%clk 0:01:59.2]} 25... hxg5 {[%clk 0:01:51.3]} 26. Rf1
{[%clk 0:01:56.4]} 26... Rxd1+ {[%clk 0:01:32.9]} 27. Qxd1 {[%clk 0:01:57.3]}
27... Qc7 {[%clk 0:01:17.7]} 28. Qf3 {[%clk 0:01:51.3]} 28... Qxh2 {[%clk
0:00:59.6]} 29. a4 {[%clk 0:01:47]} 29... Rf8 {[%clk 0:00:43.9]} 30. Bg7 {[%clk
0:01:39.6]} 30... Rd8 {[%clk 0:00:35.1]} 31. Qxf7 {[%clk 0:01:38.7]} 31... Nd5
{[%clk 0:00:34.7]} 32. Qxe6 {[%clk 0:01:34.7]} 32... Qd2 {[%clk 0:00:26.2]} 33.
c3 {[%clk 0:01:01.5]} 33... Qd3+ {[%clk 0:00:25.9]} 34. Ka2 {[%clk 0:01:00.5]}
34... Qxf1 {[%clk 0:00:24.8]} 35. Bxd5 {[%clk 0:01:01.2]} 35... Qd3 {[%clk
0:00:17.4]} 36. Be5+ {[%clk 0:00:52.7]} 36... Ka7 {[%clk 0:00:15.5]} 37. Bc4
{[%clk 0:00:52.9]} 37... Qd7 {[%clk 0:00:14.8]} 38. Qxd7 {[%clk 0:00:49.5]}
38... Rxd7 {[%clk 0:00:15.7]} 39. Bf6 {[%clk 0:00:48.3]} 39... Be3 {[%clk
0:00:15.4]} 40. Kb3 {[%clk 0:00:42.6]} 40... Bf4 {[%clk 0:00:15.1]} 41. a5
{[%clk 0:00:40.9]} 41... Rd6 {[%clk 0:00:14.6]} 42. Bd4+ {[%clk 0:00:41]} 42...
Kb8 {[%clk 0:00:13.7]} 43. Bf7 {[%clk 0:00:36.4]} 43... Rd8 {[%clk 0:00:13.7]}
44. Kc4 {[%clk 0:00:35.4]} 44... Rd7 {[%clk 0:00:13.8]} 45. Be6 {[%clk
0:00:35.2]} 45... Re7 {[%clk 0:00:13.9]} 46. Kd5 {[%clk 0:00:34.2]} 46... Rh7
{[%clk 0:00:08.1]} 47. b4 {[%clk 0:00:34]} 47... Rh2 {[%clk 0:00:06.9]} 48. Bf5
{[%clk 0:00:33.4]} 48... Re2 {[%clk 0:00:06.9]} 49. c4 {[%clk 0:00:31.1]} 49...
Kc7 {[%clk 0:00:07]} 50. b5 {[%clk 0:00:31.1]} 50... Rd2 {[%clk 0:00:06.6]} 51.
Ke4 {[%clk 0:00:30.6]} 51... axb5 {[%clk 0:00:05.5]} 52. cxb5 {[%clk 0:00:31.5]}
52... Ra2 {[%clk 0:00:05.4]} 53. Bb6+ {[%clk 0:00:29.7]} 53... Kd6 {[%clk
0:00:05.5]} 54. Bc8 {[%clk 0:00:27.6]} 54... Rb2 {[%clk 0:00:05.1]} 55. Bxb7
{[%clk 0:00:25.9]} 55... Rxb5 {[%clk 0:00:05.6]} 56. Kd3 {[%clk 0:00:21.9]}
56... Rb3+ {[%clk 0:00:05.5]} 57. Kc4 {[%clk 0:00:22.1]} 57... Ra3 {[%clk
0:00:05.6]} 58. a6 {[%clk 0:00:18.9]} 58... Ra4+ {[%clk 0:00:01.2]} 59. Kb5
{[%clk 0:00:18.9]} 59... Ra1 {[%clk 0:00:01.4]} 60. Kc4 {[%clk 0:00:18.7]} 60...
Rxa6 {[%clk 0:00:01.8]} 61. Bxa6 {[%clk 0:00:17.7]} 61... Ke5 {[%clk 0:00:02.7]}
62. Bc7+ {[%clk 0:00:15.6]} 62... Kf6 {[%clk 0:00:03.6]} 63. Bxf4 {[%clk
0:00:13.2]} 63... gxf4 {[%clk 0:00:04.5]} 64. Kd3 {[%clk 0:00:13.6]} 64... Kg5
{[%clk 0:00:05.4]} 65. Bc8 {[%clk 0:00:14.1]} 65... Kh4 {[%clk 0:00:05.6]} 66.
Ke2 {[%clk 0:00:13.8]} 66... Kg3 {[%clk 0:00:06.5]} 67. Kf1 {[%clk 0:00:13.7]}
67... Kh4 {[%clk 0:00:05.7]} 68. Kf2 {[%clk 0:00:13.9]} 68... Kg5 {[%clk
0:00:06.2]} 69. Kf3 {[%clk 0:00:14.5]} 1-0

[Event "Early-Titled-Tuesday-Blitz-September-26-2023"]
[Site "Chess.com"]
[Date "2023.09.26"]
[Round "4"]
[White "WPWPWP-2015"]
[Black "Jagerrmeisterr"]
[Result "1-0"]
[WhiteElo "2538"]
[BlackElo "2678"]
[TimeControl "180+1"]
[EndTime "8:41:08 PDT"]
[Termination "WPWPWP-2015 won by checkmate"]

1. e4 {[%clk 0:02:59]} 1... c6 {[%clk 0:02:59.1]} 2. d4 {[%clk 0:02:58.5]} 2...
d5 {[%clk 0:02:59.5]} 3. e5 {[%clk 0:02:58.9]} 3... Bf5 {[%clk 0:02:58.4]} 4.
Nf3 {[%clk 0:02:58.4]} 4... e6 {[%clk 0:02:58.5]} 5. Be2 {[%clk 0:02:58.8]} 5...
Bb4+ {[%clk 0:02:58.5]} 6. c3 {[%clk 0:02:58.2]} 6... Ba5 {[%clk 0:02:58.6]} 7.
O-O {[%clk 0:02:57]} 7... Bc7 {[%clk 0:02:58.4]} 8. Nbd2 {[%clk 0:02:56.5]} 8...
Nd7 {[%clk 0:02:58.7]} 9. a4 {[%clk 0:02:53.4]} 9... f6 {[%clk 0:02:58.9]} 10.
exf6 {[%clk 0:02:48.7]} 10... Ngxf6 {[%clk 0:02:57.8]} 11. b4 {[%clk 0:02:47.1]}
11... O-O {[%clk 0:02:57.6]} 12. Re1 {[%clk 0:02:45.2]} 12... Qb8 {[%clk
0:02:42.1]} 13. Nf1 {[%clk 0:02:44.1]} 13... e5 {[%clk 0:02:37.8]} 14. c4 {[%clk
0:02:38.6]} 14... e4 {[%clk 0:02:31.8]} 15. Nh4 {[%clk 0:02:37.3]} 15... Be6
{[%clk 0:02:32.4]} 16. c5 {[%clk 0:02:31.1]} 16... Rf7 {[%clk 0:02:05.8]} 17. h3
{[%clk 0:02:24.4]} 17... Nf8 {[%clk 0:02:02.7]} 18. b5 {[%clk 0:02:07.1]} 18...
h6 {[%clk 0:02:00.7]} 19. Bh5 {[%clk 0:01:57.6]} 19... Nxh5 {[%clk 0:01:58.5]}
20. Qxh5 {[%clk 0:01:57.5]} 20... Bf4 {[%clk 0:01:58.2]} 21. Ng6 {[%clk
0:01:38.4]} 21... Bxc1 {[%clk 0:01:45.6]} 22. Raxc1 {[%clk 0:01:36.6]} 22...
Nxg6 {[%clk 0:01:45.2]} 23. Qxg6 {[%clk 0:01:36.1]} 23... Bf5 {[%clk 0:01:44.5]}
24. Qg3 {[%clk 0:01:29.6]} 24... Qe8 {[%clk 0:01:39.9]} 25. Ne3 {[%clk
0:01:27.7]} 25... Bd7 {[%clk 0:01:37.2]} 26. Rb1 {[%clk 0:01:22.7]} 26... h5
{[%clk 0:01:27.3]} 27. Qg5 {[%clk 0:01:14.4]} 27... Rf6 {[%clk 0:01:27.7]} 28.
bxc6 {[%clk 0:01:08.5]} 28... bxc6 {[%clk 0:01:21.2]} 29. Rb7 {[%clk 0:01:05.9]}
29... Rg6 {[%clk 0:01:20.6]} 30. Qf4 {[%clk 0:01:04.5]} 30... Bxh3 {[%clk
0:01:19]} 31. Reb1 {[%clk 0:00:52]} 31... Kh7 {[%clk 0:00:43.3]} 32. Rb8 {[%clk
0:00:45.2]} 32... Rxb8 {[%clk 0:00:38.6]} 33. Rxb8 {[%clk 0:00:46.1]} 33... Qe7
{[%clk 0:00:36.2]} 34. a5 {[%clk 0:00:39.8]} 34... h4 {[%clk 0:00:30.2]} 35. a6
{[%clk 0:00:34.3]} 35... Bxg2 {[%clk 0:00:30.3]} 36. Nxg2 {[%clk 0:00:31.4]}
36... h3 {[%clk 0:00:30.6]} 37. Qf5 {[%clk 0:00:22.1]} 37... hxg2 {[%clk
0:00:18]} 38. Rh8+ {[%clk 0:00:10.4]} 38... Kxh8 {[%clk 0:00:18.1]} 39. Qxg6
{[%clk 0:00:11]} 39... Qf6 {[%clk 0:00:17.8]} 40. Qe8+ {[%clk 0:00:09.3]} 40...
Kh7 {[%clk 0:00:18.2]} 41. Qh5+ {[%clk 0:00:09.5]} 41... Qh6 {[%clk 0:00:18.2]}
42. Qf5+ {[%clk 0:00:08.8]} 42... Qg6 {[%clk 0:00:18.4]} 43. Qh3+ {[%clk
0:00:08.8]} 43... Qh6 {[%clk 0:00:11.1]} 44. Qf5+ {[%clk 0:00:08.7]} 44... g6
{[%clk 0:00:11.8]} 45. Qd7+ {[%clk 0:00:08.4]} 45... Qg7 {[%clk 0:00:12.4]} 46.
Qxc6 {[%clk 0:00:08.4]} 46... Qxd4 {[%clk 0:00:12.9]} 47. Kxg2 {[%clk
0:00:08.4]} 47... Qd3 {[%clk 0:00:10.9]} 48. Qc7+ {[%clk 0:00:07.9]} 48... Kh6
{[%clk 0:00:10.7]} 49. Qf4+ {[%clk 0:00:08.1]} 49... Kh5 {[%clk 0:00:10.9]} 50.
c6 {[%clk 0:00:08.5]} 50... g5 {[%clk 0:00:06.2]} 51. Qf7+ {[%clk 0:00:07.5]}
51... Kh6 {[%clk 0:00:05.1]} 52. Qf6+ {[%clk 0:00:07.6]} 52... Kh5 {[%clk
0:00:05.6]} 53. Qf7+ {[%clk 0:00:07.5]} 53... Kh6 {[%clk 0:00:06.2]} 54. Qf8+
{[%clk 0:00:07.9]} 54... Kg6 {[%clk 0:00:06.1]} 55. c7 {[%clk 0:00:07.8]} 55...
e3 {[%clk 0:00:04]} 56. c8=Q {[%clk 0:00:06.8]} 56... Qe4+ {[%clk 0:00:04.5]}
57. Qf3 {[%clk 0:00:06.6]} 57... Qe5 {[%clk 0:00:03.6]} 58. Qg8+ {[%clk
0:00:05.4]} 58... Kh6 {[%clk 0:00:01.4]} 59. Qgf8+ {[%clk 0:00:05.6]} 59... Kg6
{[%clk 0:00:01.7]} 60. Q8f7+ {[%clk 0:00:06]} 60... Kh6 {[%clk 0:00:02.2]} 61.
Q7f6+ {[%clk 0:00:06.4]} 61... Qxf6 {[%clk 0:00:02.2]} 62. Qxf6+ {[%clk
0:00:06.5]} 62... Kh5 {[%clk 0:00:03.1]} 63. Qf7+ {[%clk 0:00:06.6]} 63... Kg4
{[%clk 0:00:03.3]} 64. Qe6+ {[%clk 0:00:06.6]} 64... Kh4 {[%clk 0:00:03.7]} 65.
Qxe3 {[%clk 0:00:06.6]} 65... d4 {[%clk 0:00:04.5]} 66. Qe6 {[%clk 0:00:06.4]}
66... d3 {[%clk 0:00:04.6]} 67. f3 {[%clk 0:00:06.2]} 67... d2 {[%clk 0:00:05]}
68. Qg4# {[%clk 0:00:06.2]} 1-0